[Event "Titled Tuesday Blitz February 28 Early 2023"]
[White "Nakamura, Hikaru"]
[Black "Mendez Fortes, Eduardo Jesus"]
[WhiteFideId "2016192"]
[BlackFideId "3502376"]
[WhiteElo "2879"]
[BlackElo "2307"]
[Result "1-0"]
[Round "01"]
[TimeControl "180+2"]
[Date "2023.02.28"]
[WhiteClock "0:01:43"]
[BlackClock "0:01:14"]

1. Nf3 {[%clk 0:02:59]}  d5 {[%clk 0:02:58]} 2. g3 {[%clk 0:02:54]}  Nf6 {[%clk 0:02:58]} 3. d3 {[%clk 0:02:52]}  c5 {[%clk 0:02:58]} 4. Nbd2 {[%clk 0:02:52]}  Nc6 {[%clk 0:02:56]} 5. Bg2 {[%clk 0:02:52]}  e6 {[%clk 0:02:56]} 6. e4 {[%clk 0:02:52]}  Be7 {[%clk 0:02:56]} 7. O-O {[%clk 0:02:52]}  O-O {[%clk 0:02:55]} 8. Re1 {[%clk 0:02:52]}  b5 {[%clk 0:02:51]} 9. e5 {[%clk 0:02:52]}  Nd7 {[%clk 0:02:50]} 10. Nf1 {[%clk 0:02:53]}  Qc7 {[%clk 0:02:50]} 11. Bf4 {[%clk 0:02:53]}  Bb7 {[%clk 0:02:50]} 12. h4 {[%clk 0:02:53]}  Rfc8 {[%clk 0:02:49]} 13. h5 {[%clk 0:02:53]}  h6 {[%clk 0:02:50]} 14. c3 {[%clk 0:02:53]}  Qd8 {[%clk 0:02:45]} 15. Ne3 {[%clk 0:02:52]}  a5 {[%clk 0:02:33]} 16. Ng4 {[%clk 0:02:48]}  Bf8 {[%clk 0:02:30]} 17. Qd2 {[%clk 0:02:48]}  Kh8 {[%clk 0:02:28]} 18. Rad1 {[%clk 0:02:44]}  b4 {[%clk 0:02:27]} 19. c4 {[%clk 0:02:44]}  Nb6 {[%clk 0:02:25]} 20. Bxh6 {[%clk 0:02:23]}  gxh6 {[%clk 0:02:24]} 21. Qf4 {[%clk 0:02:22]}  Qe7 {[%clk 0:02:22]} 22. Nxh6 {[%clk 0:02:20]}  Rc7 {[%clk 0:02:06]} 23. Ng4 {[%clk 0:02:17]}  a4 {[%clk 0:01:42]} 24. h6 {[%clk 0:02:02]}  Rd8 {[%clk 0:01:36]} 25. Nf6 {[%clk 0:02:02]}  Nd7 {[%clk 0:01:19]} 26. cxd5 {[%clk 0:01:59]}  exd5 {[%clk 0:01:13]} 27. Nxd5 {[%clk 0:01:58]}  Qe6 {[%clk 0:01:14]} 28. Nxc7 {[%clk 0:01:43]} 1-0


[Site "https://www.chess.com"]

[Event "Titled Tuesday Blitz February 28 Early 2023"]
[White "Thorhallsson, Simon"]
[Black "Carlsen, Magnus"]
[WhiteFideId "2310090"]
[BlackFideId "1503014"]
[WhiteElo "2108"]
[BlackElo "2852"]
[Result "0-1"]
[Round "01"]
[TimeControl "180+2"]
[Date "2023.02.28"]
[WhiteClock "0:00:44"]
[BlackClock "0:02:09"]

1. e4 {[%clk 0:02:59]}  c5 {[%clk 0:02:59]} 2. Nc3 {[%clk 0:02:57]}  Nc6 {[%clk 0:02:58]} 3. Bb5 {[%clk 0:02:57]}  Nd4 {[%clk 0:02:57]} 4. Nf3 {[%clk 0:02:57]}  a6 {[%clk 0:02:56]} 5. Bd3 {[%clk 0:02:57]}  Nc6 {[%clk 0:02:54]} 6. a3 {[%clk 0:02:53]}  d6 {[%clk 0:02:53]} 7. O-O {[%clk 0:02:53]}  Bg4 {[%clk 0:02:52]} 8. Re1 {[%clk 0:02:49]}  g6 {[%clk 0:02:52]} 9. h3 {[%clk 0:02:47]}  Bxf3 {[%clk 0:02:52]} 10. Qxf3 {[%clk 0:02:47]}  Bg7 {[%clk 0:02:52]} 11. Qd1 {[%clk 0:02:45]}  e6 {[%clk 0:02:52]} 12. Bf1 {[%clk 0:02:35]}  Nge7 {[%clk 0:02:52]} 13. d3 {[%clk 0:02:34]}  O-O {[%clk 0:02:52]} 14. Be3 {[%clk 0:02:17]}  b6 {[%clk 0:02:52]} 15. Qd2 {[%clk 0:02:17]}  d5 {[%clk 0:02:52]} 16. exd5 {[%clk 0:02:15]}  exd5 {[%clk 0:02:50]} 17. Bh6 {[%clk 0:02:14]}  Nf5 {[%clk 0:02:49]} 18. Bxg7 {[%clk 0:02:14]}  Kxg7 {[%clk 0:02:49]} 19. g3 {[%clk 0:02:09]}  Qd7 {[%clk 0:02:46]} 20. Bg2 {[%clk 0:02:07]}  Nfe7 {[%clk 0:02:38]} 21. h4 {[%clk 0:02:01]}  h6 {[%clk 0:02:37]} 22. Ne2 {[%clk 0:01:45]}  Rad8 {[%clk 0:02:36]} 23. Nf4 {[%clk 0:01:45]}  Qd6 {[%clk 0:02:36]} 24. c3 {[%clk 0:01:43]}  Rfe8 {[%clk 0:02:35]} 25. Re2 {[%clk 0:01:43]}  d4 {[%clk 0:02:33]} 26. c4 {[%clk 0:01:40]}  Ng8 {[%clk 0:02:32]} 27. Rae1 {[%clk 0:01:39]}  Rxe2 {[%clk 0:02:32]} 28. Qxe2 {[%clk 0:01:39]}  Nf6 {[%clk 0:02:32]} 29. Nd5 {[%clk 0:01:33]}  Re8 {[%clk 0:02:30]} 30. Qd1 {[%clk 0:01:26]}  Rxe1+ {[%clk 0:02:31]} 31. Qxe1 {[%clk 0:01:26]}  Ne5 {[%clk 0:02:32]} 32. Qe2 {[%clk 0:01:23]}  a5 {[%clk 0:02:29]} 33. Nxf6 {[%clk 0:01:11]}  Qxf6 {[%clk 0:02:28]} 34. Bd5 {[%clk 0:01:12]}  g5 {[%clk 0:02:28]} 35. hxg5 {[%clk 0:01:11]}  hxg5 {[%clk 0:02:29]} 36. Kg2 {[%clk 0:01:12]}  g4 {[%clk 0:02:24]} 37. Qe4 {[%clk 0:01:05]}  Qf3+ {[%clk 0:02:24]} 38. Qxf3 {[%clk 0:01:04]}  gxf3+ {[%clk 0:02:25]} 39. Bxf3 {[%clk 0:01:04]}  Nxd3 {[%clk 0:02:25]} 40. Bd5 {[%clk 0:00:49]}  Nxb2 {[%clk 0:02:10]} 41. f4 {[%clk 0:00:44]}  d3 {[%clk 0:02:09]} 0-1


[Site "https://www.chess.com"]

[Event "Titled Tuesday Blitz February 28 Early 2023"]
[White "So, Wesley"]
[Black "Urbina Perez, Juan Antonio"]
[WhiteFideId "5202213"]
[BlackFideId "2217368"]
[WhiteElo "2739"]
[BlackElo "2197"]
[Result "1-0"]
[Round "01"]
[TimeControl "180+2"]
[Date "2023.02.28"]
[WhiteClock "0:01:17"]
[BlackClock "0:00:20"]

1. e4 {[%clk 0:02:55]}  c5 {[%clk 0:02:57]} 2. Nf3 {[%clk 0:02:54]}  d6 {[%clk 0:02:57]} 3. d4 {[%clk 0:02:54]}  cxd4 {[%clk 0:02:58]} 4. Nxd4 {[%clk 0:02:55]}  Nf6 {[%clk 0:02:59]} 5. f3 {[%clk 0:02:55]}  e5 {[%clk 0:02:54]} 6. Nb3 {[%clk 0:02:55]}  d5 {[%clk 0:02:48]} 7. Bg5 {[%clk 0:02:54]}  Be6 {[%clk 0:02:43]} 8. Bxf6 {[%clk 0:02:51]}  gxf6 {[%clk 0:02:43]} 9. exd5 {[%clk 0:02:52]}  Qxd5 {[%clk 0:02:43]} 10. Nc3 {[%clk 0:02:52]}  Qxd1+ {[%clk 0:02:39]} 11. Rxd1 {[%clk 0:02:53]}  Bb4 {[%clk 0:02:28]} 12. Kd2 {[%clk 0:02:40]}  Nc6 {[%clk 0:02:23]} 13. a3 {[%clk 0:02:40]}  O-O-O+ {[%clk 0:02:14]} 14. Bd3 {[%clk 0:02:40]}  Be7 {[%clk 0:02:11]} 15. Kc1 {[%clk 0:02:35]}  a6 {[%clk 0:02:03]} 16. Be4 {[%clk 0:02:20]}  Kc7 {[%clk 0:01:27]} 17. Nd5+ {[%clk 0:02:18]}  Bxd5 {[%clk 0:01:25]} 18. Rxd5 {[%clk 0:02:15]}  h6 {[%clk 0:01:16]} 19. Rhd1 {[%clk 0:02:05]}  Rhg8 {[%clk 0:00:59]} 20. g4 {[%clk 0:02:04]}  Rxd5 {[%clk 0:00:51]} 21. Bxd5 {[%clk 0:02:05]}  Nd8 {[%clk 0:00:45]} 22. Rd3 {[%clk 0:01:53]}  h5 {[%clk 0:00:44]} 23. Rc3+ {[%clk 0:01:47]}  Kb8 {[%clk 0:00:43]} 24. h3 {[%clk 0:01:43]}  hxg4 {[%clk 0:00:43]} 25. hxg4 {[%clk 0:01:43]}  Rh8 {[%clk 0:00:43]} 26. Kb1 {[%clk 0:01:37]}  Rh1+ {[%clk 0:00:37]} 27. Ka2 {[%clk 0:01:38]}  Rd1 {[%clk 0:00:38]} 28. Be4 {[%clk 0:01:38]}  Rd7 {[%clk 0:00:36]} 29. Na5 {[%clk 0:01:26]}  Bd6 {[%clk 0:00:28]} 30. Rd3 {[%clk 0:01:22]}  Kc7 {[%clk 0:00:27]} 31. Bf5 {[%clk 0:01:20]}  Re7 {[%clk 0:00:24]} 32. b4 {[%clk 0:01:19]}  Nc6 {[%clk 0:00:23]} 33. Nc4 {[%clk 0:01:18]}  Nd4 {[%clk 0:00:20]} 34. Nxd6 {[%clk 0:01:17]}  Kxd6 {[%clk 0:00:20]} 35. c3 {[%clk 0:01:17]} 1-0


[Site "https://www.chess.com"]

[Event "Titled Tuesday Blitz February 28 Early 2023"]
[White "Caruana, Fabiano"]
[Black "Ibadov, Dashgyn"]
[WhiteFideId "2020009"]
[BlackFideId "24107514"]
[WhiteElo "2818"]
[BlackElo "2208"]
[Result "1-0"]
[Round "01"]
[TimeControl "180+2"]
[Date "2023.02.28"]
[WhiteClock "0:01:23"]
[BlackClock "0:00:05"]

1. c4 {[%clk 0:02:59]}  Nf6 {[%clk 0:02:53]} 2. Nf3 {[%clk 0:02:57]}  c5 {[%clk 0:02:52]} 3. Nc3 {[%clk 0:02:57]}  e6 {[%clk 0:02:51]} 4. e3 {[%clk 0:02:55]}  d5 {[%clk 0:02:45]} 5. d4 {[%clk 0:02:56]}  cxd4 {[%clk 0:02:45]} 6. exd4 {[%clk 0:02:55]}  Nc6 {[%clk 0:02:44]} 7. c5 {[%clk 0:02:48]}  Be7 {[%clk 0:02:32]} 8. Bb5 {[%clk 0:02:47]}  O-O {[%clk 0:02:31]} 9. O-O {[%clk 0:02:44]}  Ne4 {[%clk 0:02:28]} 10. Re1 {[%clk 0:02:39]}  f5 {[%clk 0:02:17]} 11. Bxc6 {[%clk 0:02:36]}  bxc6 {[%clk 0:02:17]} 12. Ne5 {[%clk 0:02:37]}  Bd7 {[%clk 0:02:13]} 13. f3 {[%clk 0:02:36]}  Nxc3 {[%clk 0:02:07]} 14. bxc3 {[%clk 0:02:37]}  f4 {[%clk 0:01:51]} 15. Rb1 {[%clk 0:02:31]}  Qc7 {[%clk 0:01:47]} 16. Bd2 {[%clk 0:02:24]}  Kh8 {[%clk 0:01:33]} 17. Qa4 {[%clk 0:02:15]}  g5 {[%clk 0:01:08]} 18. Rb3 {[%clk 0:02:05]}  Bf6 {[%clk 0:01:03]} 19. Qa6 {[%clk 0:01:54]}  Rab8 {[%clk 0:00:57]} 20. h4 {[%clk 0:01:53]}  Rxb3 {[%clk 0:00:48]} 21. axb3 {[%clk 0:01:54]}  Bxe5 {[%clk 0:00:39]} 22. Rxe5 {[%clk 0:01:55]}  gxh4 {[%clk 0:00:36]} 23. Kh2 {[%clk 0:01:53]}  Bc8 {[%clk 0:00:35]} 24. Qe2 {[%clk 0:01:51]}  Qg7 {[%clk 0:00:33]} 25. Be1 {[%clk 0:01:46]}  Qf6 {[%clk 0:00:27]} 26. Qf2 {[%clk 0:01:43]}  Bd7 {[%clk 0:00:15]} 27. Qxh4 {[%clk 0:01:42]}  Qxh4+ {[%clk 0:00:16]} 28. Bxh4 {[%clk 0:01:42]}  Rb8 {[%clk 0:00:16]} 29. b4 {[%clk 0:01:42]}  a5 {[%clk 0:00:13]} 30. bxa5 {[%clk 0:01:42]}  Ra8 {[%clk 0:00:13]} 31. Bf6+ {[%clk 0:01:37]}  Kg8 {[%clk 0:00:13]} 32. Rg5+ {[%clk 0:01:38]}  Kf7 {[%clk 0:00:14]} 33. Be5 {[%clk 0:01:38]}  Rxa5 {[%clk 0:00:13]} 34. Rg7+ {[%clk 0:01:38]}  Ke8 {[%clk 0:00:13]} 35. Bxf4 {[%clk 0:01:35]}  Ra3 {[%clk 0:00:12]} 36. Rxh7 {[%clk 0:01:31]}  Rxc3 {[%clk 0:00:12]} 37. Be5 {[%clk 0:01:31]}  Bc8 {[%clk 0:00:05]} 38. Bf6 {[%clk 0:01:23]} 1-0


[Site "https://www.chess.com"]

[Event "Titled Tuesday Blitz February 28 Early 2023"]
[White "Paravyan, David"]
[Black "Martin Carmona, Gaston Manuel"]
[WhiteFideId "4194985"]
[BlackFideId "22284567"]
[WhiteElo "2577"]
[BlackElo "2245"]
[Result "1-0"]
[Round "01"]
[TimeControl "180+2"]
[Date "2023.02.28"]
[WhiteClock "0:01:26"]
[BlackClock "0:00:03"]

1. e4 {[%clk 0:02:54]}  c5 {[%clk 0:03:00]} 2. Nf3 {[%clk 0:02:55]}  d6 {[%clk 0:03:00]} 3. d4 {[%clk 0:02:55]}  cxd4 {[%clk 0:03:01]} 4. Nxd4 {[%clk 0:02:56]}  Nf6 {[%clk 0:03:01]} 5. Nc3 {[%clk 0:02:56]}  g6 {[%clk 0:03:02]} 6. Be3 {[%clk 0:02:56]}  Bg7 {[%clk 0:03:01]} 7. f3 {[%clk 0:02:56]}  Nc6 {[%clk 0:03:01]} 8. Qd2 {[%clk 0:02:56]}  O-O {[%clk 0:03:02]} 9. Bc4 {[%clk 0:02:56]}  Bd7 {[%clk 0:02:59]} 10. O-O-O {[%clk 0:02:49]}  Rc8 {[%clk 0:02:59]} 11. Be2 {[%clk 0:02:49]}  Ne5 {[%clk 0:02:58]} 12. g4 {[%clk 0:02:48]}  Qa5 {[%clk 0:02:51]} 13. Kb1 {[%clk 0:02:46]}  Rxc3 {[%clk 0:02:46]} 14. Qxc3 {[%clk 0:02:47]}  Qxc3 {[%clk 0:02:46]} 15. bxc3 {[%clk 0:02:46]}  Rc8 {[%clk 0:02:47]} 16. Bc1 {[%clk 0:02:32]}  Rxc3 {[%clk 0:02:26]} 17. g5 {[%clk 0:02:30]}  Ne8 {[%clk 0:02:23]} 18. Bb2 {[%clk 0:02:30]}  Rc8 {[%clk 0:02:19]} 19. Rhe1 {[%clk 0:02:20]}  Bh3 {[%clk 0:02:05]} 20. Nb3 {[%clk 0:02:08]}  Bg2 {[%clk 0:01:01]} 21. f4 {[%clk 0:02:08]}  Bxe4 {[%clk 0:01:01]} 22. fxe5 {[%clk 0:02:09]}  Bxc2+ {[%clk 0:01:01]} 23. Ka1 {[%clk 0:02:10]}  Bxd1 {[%clk 0:01:02]} 24. Bxd1 {[%clk 0:02:10]}  Bxe5 {[%clk 0:01:03]} 25. Bxe5 {[%clk 0:02:10]}  dxe5 {[%clk 0:01:04]} 26. Rxe5 {[%clk 0:02:11]}  Kf8 {[%clk 0:01:04]} 27. Ra5 {[%clk 0:02:05]}  a6 {[%clk 0:01:02]} 28. Rc5 {[%clk 0:02:05]}  Rd8 {[%clk 0:00:57]} 29. Bf3 {[%clk 0:02:04]}  b6 {[%clk 0:00:43]} 30. Rc6 {[%clk 0:02:04]}  Rb8 {[%clk 0:00:34]} 31. Be2 {[%clk 0:02:02]}  a5 {[%clk 0:00:33]} 32. Nd2 {[%clk 0:01:57]}  Nd6 {[%clk 0:00:33]} 33. Nc4 {[%clk 0:01:57]}  Ne4 {[%clk 0:00:27]} 34. Nxb6 {[%clk 0:01:55]}  Kg7 {[%clk 0:00:28]} 35. h4 {[%clk 0:01:53]}  Rd8 {[%clk 0:00:28]} 36. Rc7 {[%clk 0:01:50]}  Rd2 {[%clk 0:00:27]} 37. Bc4 {[%clk 0:01:50]}  Kf8 {[%clk 0:00:07]} 38. Nd7+ {[%clk 0:01:46]}  Ke8 {[%clk 0:00:06]} 39. Ne5 {[%clk 0:01:46]}  Kd8 {[%clk 0:00:06]} 40. Ra7 {[%clk 0:01:39]}  Nc3 {[%clk 0:00:02]} 41. Nc6+ {[%clk 0:01:39]}  Ke8 {[%clk 0:00:01]} 42. Rxe7+ {[%clk 0:01:40]}  Kf8 {[%clk 0:00:01]} 43. Rxf7+ {[%clk 0:01:41]}  Ke8 {[%clk 0:00:02]} 44. Re7+ {[%clk 0:01:40]}  Kf8 {[%clk 0:00:02]} 45. Ra7 {[%clk 0:01:28]}  Na4 {[%clk 0:00:03]} 46. Ra8+ {[%clk 0:01:26]} 1-0


[Site "https://www.chess.com"]

[Event "Titled Tuesday Blitz February 28 Early 2023"]
[White "Duda, Jan-Krzysztof"]
[Black "Derjabin, Ilja"]
[WhiteFideId "1170546"]
[BlackFideId "14104768"]
[WhiteElo "2790"]
[BlackElo "2309"]
[Result "1-0"]
[Round "01"]
[TimeControl "180+2"]
[Date "2023.02.28"]
[WhiteClock "0:01:42"]
[BlackClock "0:00:28"]

1. c3 {[%clk 0:03:00]}  c5 {[%clk 0:02:54]} 2. d4 {[%clk 0:03:00]}  g6 {[%clk 0:02:54]} 3. e4 {[%clk 0:02:58]}  Bg7 {[%clk 0:02:54]} 4. d5 {[%clk 0:02:56]}  d6 {[%clk 0:02:53]} 5. Nf3 {[%clk 0:02:52]}  Nf6 {[%clk 0:02:52]} 6. Bg5 {[%clk 0:02:50]}  a6 {[%clk 0:02:46]} 7. Nbd2 {[%clk 0:02:50]}  O-O {[%clk 0:02:45]} 8. a4 {[%clk 0:02:49]}  e6 {[%clk 0:02:42]} 9. Bc4 {[%clk 0:02:42]}  exd5 {[%clk 0:02:39]} 10. Bxd5 {[%clk 0:02:42]}  h6 {[%clk 0:02:33]} 11. Bxf6 {[%clk 0:02:42]}  Qxf6 {[%clk 0:02:33]} 12. Nc4 {[%clk 0:02:40]}  Nd7 {[%clk 0:02:27]} 13. Nxd6 {[%clk 0:02:39]}  Ne5 {[%clk 0:02:16]} 14. Nxe5 {[%clk 0:02:35]}  Qxe5 {[%clk 0:02:17]} 15. Nc4 {[%clk 0:02:33]}  Qg5 {[%clk 0:02:11]} 16. O-O {[%clk 0:02:32]}  Rb8 {[%clk 0:02:09]} 17. f4 {[%clk 0:02:32]}  Qh4 {[%clk 0:02:06]} 18. a5 {[%clk 0:02:31]}  Bg4 {[%clk 0:01:58]} 19. Qd3 {[%clk 0:02:32]}  Qh5 {[%clk 0:01:50]} 20. Rae1 {[%clk 0:02:30]}  Rfd8 {[%clk 0:01:48]} 21. f5 {[%clk 0:02:28]}  gxf5 {[%clk 0:01:37]} 22. exf5 {[%clk 0:02:29]}  Rd7 {[%clk 0:01:36]} 23. h3 {[%clk 0:02:23]}  Be2 {[%clk 0:01:28]} 24. Rxe2 {[%clk 0:02:18]}  Rxd5 {[%clk 0:01:28]} 25. Qxd5 {[%clk 0:02:19]}  Qxe2 {[%clk 0:01:28]} 26. f6 {[%clk 0:02:20]}  Bf8 {[%clk 0:01:26]} 27. Ne5 {[%clk 0:02:20]}  Qh5 {[%clk 0:01:25]} 28. g4 {[%clk 0:02:20]}  Rd8 {[%clk 0:01:19]} 29. Qxd8 {[%clk 0:02:13]}  Qxe5 {[%clk 0:01:19]} 30. Qd3 {[%clk 0:02:09]}  Bd6 {[%clk 0:01:16]} 31. Rf2 {[%clk 0:01:55]}  c4 {[%clk 0:00:58]} 32. Qf5 {[%clk 0:01:46]}  Qg3+ {[%clk 0:00:51]} 33. Kf1 {[%clk 0:01:46]}  Qxh3+ {[%clk 0:00:44]} 34. Ke2 {[%clk 0:01:46]}  Bg3 {[%clk 0:00:36]} 35. Qc8+ {[%clk 0:01:43]}  Kh7 {[%clk 0:00:36]} 36. Qxc4 {[%clk 0:01:43]}  Kg8 {[%clk 0:00:28]} 37. Qe4 {[%clk 0:01:42]} 1-0


[Site "https://www.chess.com"]

[Event "Titled Tuesday Blitz February 28 Early 2023"]
[White "Le, Tuan Minh"]
[Black "Filgueira, Hernan"]
[WhiteFideId "12401153"]
[BlackFideId "101770"]
[WhiteElo "2558"]
[BlackElo "2363"]
[Result "1-0"]
[Round "01"]
[TimeControl "180+2"]
[Date "2023.02.28"]
[WhiteClock "0:00:34"]
[BlackClock "0:00:13"]

1. d4 {[%clk 0:02:56]}  d6 {[%clk 0:02:58]} 2. e4 {[%clk 0:02:55]}  Nf6 {[%clk 0:02:58]} 3. Nc3 {[%clk 0:02:54]}  g6 {[%clk 0:02:57]} 4. Nf3 {[%clk 0:02:54]}  Bg7 {[%clk 0:02:57]} 5. Bc4 {[%clk 0:02:53]}  O-O {[%clk 0:02:55]} 6. O-O {[%clk 0:02:53]}  c6 {[%clk 0:02:55]} 7. Bb3 {[%clk 0:02:52]}  Bg4 {[%clk 0:02:52]} 8. h3 {[%clk 0:02:52]}  Bxf3 {[%clk 0:02:52]} 9. Qxf3 {[%clk 0:02:53]}  Nbd7 {[%clk 0:02:52]} 10. Be3 {[%clk 0:02:50]}  Qc7 {[%clk 0:02:47]} 11. Rad1 {[%clk 0:02:48]}  a5 {[%clk 0:02:41]} 12. a3 {[%clk 0:02:45]}  Rab8 {[%clk 0:02:33]} 13. Rfe1 {[%clk 0:02:44]}  b5 {[%clk 0:02:30]} 14. Bf4 {[%clk 0:02:07]}  e5 {[%clk 0:02:21]} 15. dxe5 {[%clk 0:02:02]}  dxe5 {[%clk 0:02:18]} 16. Be3 {[%clk 0:02:00]}  b4 {[%clk 0:01:30]} 17. axb4 {[%clk 0:01:58]}  axb4 {[%clk 0:01:30]} 18. Nb1 {[%clk 0:01:54]}  c5 {[%clk 0:01:28]} 19. Nd2 {[%clk 0:01:52]}  Nb6 {[%clk 0:01:27]} 20. Nc4 {[%clk 0:01:52]}  Nxc4 {[%clk 0:01:21]} 21. Bxc4 {[%clk 0:01:53]}  Rb6 {[%clk 0:01:18]} 22. Rd3 {[%clk 0:01:43]}  Rd6 {[%clk 0:01:16]} 23. Rxd6 {[%clk 0:01:40]}  Qxd6 {[%clk 0:01:16]} 24. Rd1 {[%clk 0:01:00]}  Qc6 {[%clk 0:01:15]} 25. b3 {[%clk 0:00:58]}  Re8 {[%clk 0:00:55]} 26. Ra1 {[%clk 0:00:44]}  Qc7 {[%clk 0:00:39]} 27. Ra6 {[%clk 0:00:41]}  Nh5 {[%clk 0:00:34]} 28. g3 {[%clk 0:00:41]}  h6 {[%clk 0:00:25]} 29. Rxg6 {[%clk 0:00:40]}  Kh7 {[%clk 0:00:21]} 30. Ra6 {[%clk 0:00:38]}  Nf4 {[%clk 0:00:16]} 31. gxf4 {[%clk 0:00:37]}  exf4 {[%clk 0:00:17]} 32. Qxf4 {[%clk 0:00:38]}  Re5 {[%clk 0:00:15]} 33. Qxf7 {[%clk 0:00:35]}  Qxf7 {[%clk 0:00:11]} 34. Bxf7 {[%clk 0:00:35]}  Re7 {[%clk 0:00:12]} 35. Bg6+ {[%clk 0:00:34]}  Kg8 {[%clk 0:00:13]} 36. Ra8+ {[%clk 0:00:34]} 1-0


[Site "https://www.chess.com"]

[Event "Titled Tuesday Blitz February 28 Early 2023"]
[White "Dubov, Daniil"]
[Black "Karas, Marek"]
[WhiteFideId "24126055"]
[BlackFideId "14928558"]
[WhiteElo "2802"]
[BlackElo "2233"]
[Result "1-0"]
[Round "01"]
[TimeControl "180+2"]
[Date "2023.02.28"]
[WhiteClock "0:00:47"]
[BlackClock "0:00:09"]

1. d4 {[%clk 0:02:59]}  Nf6 {[%clk 0:02:59]} 2. Nf3 {[%clk 0:03:00]}  d5 {[%clk 0:02:59]} 3. Bf4 {[%clk 0:03:00]}  e6 {[%clk 0:02:59]} 4. e3 {[%clk 0:03:00]}  Bd6 {[%clk 0:02:59]} 5. Bg3 {[%clk 0:03:00]}  O-O {[%clk 0:02:59]} 6. Nbd2 {[%clk 0:03:00]}  c5 {[%clk 0:02:59]} 7. c3 {[%clk 0:02:59]}  Qc7 {[%clk 0:02:59]} 8. dxc5 {[%clk 0:02:57]}  Qxc5 {[%clk 0:02:59]} 9. Bd3 {[%clk 0:02:55]}  Nbd7 {[%clk 0:02:59]} 10. e4 {[%clk 0:02:53]}  Bxg3 {[%clk 0:02:56]} 11. hxg3 {[%clk 0:02:53]}  dxe4 {[%clk 0:02:56]} 12. Bxe4 {[%clk 0:02:49]}  Nxe4 {[%clk 0:02:52]} 13. Nxe4 {[%clk 0:02:49]}  Qf5 {[%clk 0:02:38]} 14. Nd6 {[%clk 0:02:47]}  Qc5 {[%clk 0:02:28]} 15. Qd3 {[%clk 0:02:35]}  Nf6 {[%clk 0:02:25]} 16. O-O-O {[%clk 0:02:35]}  Qd5 {[%clk 0:02:03]} 17. Qb1 {[%clk 0:02:26]}  Qc5 {[%clk 0:01:56]} 18. g4 {[%clk 0:02:22]}  g6 {[%clk 0:01:47]} 19. Ne4 {[%clk 0:02:16]}  Nxe4 {[%clk 0:01:31]} 20. Qxe4 {[%clk 0:02:17]}  e5 {[%clk 0:01:02]} 21. g5 {[%clk 0:02:02]}  Qxf2 {[%clk 0:00:54]} 22. Rd2 {[%clk 0:01:20]}  Qg3 {[%clk 0:00:42]} 23. Qxe5 {[%clk 0:01:20]}  Qxe5 {[%clk 0:00:40]} 24. Nxe5 {[%clk 0:01:21]}  Be6 {[%clk 0:00:38]} 25. Rf2 {[%clk 0:01:17]}  Rad8 {[%clk 0:00:34]} 26. Re1 {[%clk 0:01:15]}  Rd5 {[%clk 0:00:33]} 27. c4 {[%clk 0:01:13]}  Rd4 {[%clk 0:00:31]} 28. b3 {[%clk 0:01:13]}  Rc8 {[%clk 0:00:29]} 29. Kb2 {[%clk 0:01:13]}  Rcd8 {[%clk 0:00:24]} 30. Kc3 {[%clk 0:01:12]}  Kg7 {[%clk 0:00:24]} 31. Nxf7 {[%clk 0:01:01]}  Rd3+ {[%clk 0:00:21]} 32. Kc2 {[%clk 0:01:01]}  Bf5 {[%clk 0:00:14]} 33. Rxf5 {[%clk 0:00:48]}  Rd2+ {[%clk 0:00:12]} 34. Kc1 {[%clk 0:00:48]}  gxf5 {[%clk 0:00:12]} 35. Nxd8 {[%clk 0:00:48]}  Rxd8 {[%clk 0:00:12]} 36. Re7+ {[%clk 0:00:49]}  Kg6 {[%clk 0:00:13]} 37. Rxb7 {[%clk 0:00:49]}  Kxg5 {[%clk 0:00:13]} 38. Rxh7 {[%clk 0:00:49]}  Rd3 {[%clk 0:00:10]} 39. Kc2 {[%clk 0:00:48]}  Re3 {[%clk 0:00:09]} 40. Kd2 {[%clk 0:00:48]}  f4 {[%clk 0:00:08]} 41. Rxa7 {[%clk 0:00:47]}  Kf5 {[%clk 0:00:09]} 42. Rf7+ {[%clk 0:00:47]}  Ke4 {[%clk 0:00:09]} 43. Re7+ {[%clk 0:00:47]} 1-0


[Site "https://www.chess.com"]

[Event "Titled Tuesday Blitz February 28 Early 2023"]
[White "Novikov, Evgenij"]
[Black "Lazavik, Denis"]
[WhiteFideId "4125380"]
[BlackFideId "13515110"]
[WhiteElo "2242"]
[BlackElo "2560"]
[Result "0-1"]
[Round "01"]
[TimeControl "180+2"]
[Date "2023.02.28"]
[WhiteClock "0:00:02"]
[BlackClock "0:00:24"]

1. d4 {[%clk 0:03:00]}  f5 {[%clk 0:02:58]} 2. Nc3 {[%clk 0:03:00]}  Nf6 {[%clk 0:02:59]} 3. Bg5 {[%clk 0:03:00]}  d5 {[%clk 0:02:59]} 4. Bxf6 {[%clk 0:02:59]}  exf6 {[%clk 0:03:00]} 5. e3 {[%clk 0:02:59]}  Be6 {[%clk 0:02:59]} 6. Bd3 {[%clk 0:03:00]}  Nc6 {[%clk 0:02:59]} 7. Qf3 {[%clk 0:02:59]}  Qd7 {[%clk 0:02:59]} 8. Nge2 {[%clk 0:02:55]}  Nb4 {[%clk 0:02:50]} 9. Nf4 {[%clk 0:02:36]}  Bf7 {[%clk 0:02:49]} 10. O-O-O {[%clk 0:02:27]}  Nxd3+ {[%clk 0:02:28]} 11. Nxd3 {[%clk 0:02:22]}  c6 {[%clk 0:02:26]} 12. Kb1 {[%clk 0:02:18]}  Bd6 {[%clk 0:02:07]} 13. h3 {[%clk 0:02:18]}  h5 {[%clk 0:02:07]} 14. g3 {[%clk 0:02:00]}  O-O-O {[%clk 0:01:58]} 15. h4 {[%clk 0:01:57]}  g6 {[%clk 0:01:57]} 16. Ne2 {[%clk 0:01:55]}  Kb8 {[%clk 0:01:56]} 17. Rhe1 {[%clk 0:01:46]}  Rhe8 {[%clk 0:01:56]} 18. Nec1 {[%clk 0:01:39]}  b6 {[%clk 0:01:52]} 19. c3 {[%clk 0:01:27]}  a5 {[%clk 0:01:52]} 20. Ka1 {[%clk 0:01:24]}  Ka7 {[%clk 0:01:51]} 21. Nb3 {[%clk 0:01:22]}  Qc7 {[%clk 0:01:35]} 22. Rc1 {[%clk 0:01:19]}  c5 {[%clk 0:01:21]} 23. Nd2 {[%clk 0:01:13]}  c4 {[%clk 0:01:20]} 24. Nf4 {[%clk 0:01:12]}  Bf8 {[%clk 0:01:17]} 25. Qd1 {[%clk 0:01:08]}  b5 {[%clk 0:01:16]} 26. f3 {[%clk 0:01:07]}  Bd6 {[%clk 0:01:09]} 27. Nf1 {[%clk 0:01:03]}  Rb8 {[%clk 0:01:05]} 28. Qd2 {[%clk 0:01:02]}  Rb6 {[%clk 0:01:04]} 29. Re2 {[%clk 0:00:55]}  b4 {[%clk 0:01:02]} 30. e4 {[%clk 0:00:51]}  fxe4 {[%clk 0:00:58]} 31. fxe4 {[%clk 0:00:51]}  dxe4 {[%clk 0:00:59]} 32. Ne3 {[%clk 0:00:43]}  Bxf4 {[%clk 0:00:57]} 33. gxf4 {[%clk 0:00:44]}  Qxf4 {[%clk 0:00:51]} 34. Nxc4 {[%clk 0:00:40]}  Qxd2 {[%clk 0:00:50]} 35. Nxd2 {[%clk 0:00:41]}  bxc3 {[%clk 0:00:47]} 36. bxc3 {[%clk 0:00:40]}  f5 {[%clk 0:00:48]} 37. Rf1 {[%clk 0:00:37]}  Re7 {[%clk 0:00:42]} 38. Re3 {[%clk 0:00:34]}  Rc7 {[%clk 0:00:42]} 39. Rb1 {[%clk 0:00:31]}  Rxb1+ {[%clk 0:00:40]} 40. Kxb1 {[%clk 0:00:31]}  Bd5 {[%clk 0:00:41]} 41. Rg3 {[%clk 0:00:17]}  f4 {[%clk 0:00:39]} 42. Rxg6 {[%clk 0:00:17]}  e3 {[%clk 0:00:40]} 43. Kc2 {[%clk 0:00:15]}  Re7 {[%clk 0:00:31]} 44. Rg1 {[%clk 0:00:09]}  exd2 {[%clk 0:00:27]} 45. Kxd2 {[%clk 0:00:10]}  f3 {[%clk 0:00:28]} 46. Rf1 {[%clk 0:00:08]}  Kb6 {[%clk 0:00:26]} 47. Kd3 {[%clk 0:00:07]}  Kb5 {[%clk 0:00:24]} 48. Rb1+ {[%clk 0:00:06]}  Ka4 {[%clk 0:00:24]} 49. Rf1 {[%clk 0:00:04]}  Rc7 {[%clk 0:00:24]} 50. Kd2 {[%clk 0:00:02]}  Ka3 {[%clk 0:00:24]} 0-1


[Site "https://www.chess.com"]